Workbook

Sheet Monthly Budget Summary
B1: COMPANY NAME
B2: MONTHLY BUDGET | E2: Date
B4: BUDGET TOTALS | C4: ESTIMATED | D4: ACTUAL | E4: DIFFERENCE
B5: Income | C5: =Income[[#Totals],[ESTIMATED]] -> 63,300.00 | D5: =Income[[#Totals],[ACTUAL]] -> 57,450.00 | E5: =Totals[[#This Row],[ACTUAL]]-Totals[[#This Row],[ESTIMATED]] -> -5,850.00
B6: Expenses | C6: =OperatingExpenses[[#Totals],[ESTIMATED]]+PersonnelExpenses[[#Totals],[ESTIMATED]] -> 54,500.00 | D6: =OperatingExpenses[[#Totals],[ACTUAL]]+PersonnelExpenses[[#Totals],[ACTUAL]] -> 49,630.00 | E6: =Totals[[#This Row],[ESTIMATED]]-Totals[[#This Row],[ACTUAL]] -> 4,870.00
B7: Balance (Income minus Expenses) | C7: =C5-C6 -> 8,800.00 | D7: =D5-D6 -> 7,820.00 | E7: =Totals[[#Totals],[ACTUAL]]-Totals[[#Totals],[ESTIMATED]] -> -980.00
B10: WHAT ARE MY TOP 5 HIGHEST OPERATING EXPENSES?
B11: EXPENSE | C11: AMOUNT | D11: % OF EXPENSES | E11: 15% REDUCTION
B12: =INDEX(OperatingExpenses[],MATCH(Top5Expenses[[#This Row],[AMOUNT]],OperatingExpenses[TOP 5 AMOUNT],0),1) -> Maintenance and repairs | C12: =LARGE(OperatingExpenses[TOP 5 AMOUNT],1) -> 4,600.00 | D12: =Top5Expenses[[#This Row],[AMOUNT]]/$D$6 -> 9.3% | E12: =Top5Expenses[[#This Row],[AMOUNT]]*0.15 -> 690.00
B13: =INDEX(OperatingExpenses[],MATCH(Top5Expenses[[#This Row],[AMOUNT]],OperatingExpenses[TOP 5 AMOUNT],0),1) -> Supplies | C13: =LARGE(OperatingExpenses[TOP 5 AMOUNT],2) -> 4,500.00 | D13: =Top5Expenses[[#This Row],[AMOUNT]]/$D$6 -> 9.1% | E13: =Top5Expenses[[#This Row],[AMOUNT]]*0.15 -> 675.00
B14: =INDEX(OperatingExpenses[],MATCH(Top5Expenses[[#This Row],[AMOUNT]],OperatingExpenses[TOP 5 AMOUNT],0),1) -> Rent or mortgage | C14: =LARGE(OperatingExpenses[TOP 5 AMOUNT],3) -> 4,500.00 | D14: =Top5Expenses[[#This Row],[AMOUNT]]/$D$6 -> 9.1% | E14: =Top5Expenses[[#This Row],[AMOUNT]]*0.15 -> 675.00
B15: =INDEX(OperatingExpenses[],MATCH(Top5Expenses[[#This Row],[AMOUNT]],OperatingExpenses[TOP 5 AMOUNT],0),1) -> Taxes | C15: =LARGE(OperatingExpenses[TOP 5 AMOUNT],4) -> 3,200.00 | D15: =Top5Expenses[[#This Row],[AMOUNT]]/$D$6 -> 6.4% | E15: =Top5Expenses[[#This Row],[AMOUNT]]*0.15 -> 480.00
B16: =INDEX(OperatingExpenses[],MATCH(Top5Expenses[[#This Row],[AMOUNT]],OperatingExpenses[TOP 5 AMOUNT],0),1) -> Advertising | C16: =LARGE(OperatingExpenses[TOP 5 AMOUNT],5) -> 2,500.00 | D16: =Top5Expenses[[#This Row],[AMOUNT]]/$D$6 -> 5.0% | E16: =Top5Expenses[[#This Row],[AMOUNT]]*0.15 -> 375.00
B17: Total | C17: =SUBTOTAL(109,Top5Expenses[AMOUNT]) -> 19,300.00 | D17: =SUBTOTAL(109,Top5Expenses[% OF EXPENSES]) -> 38.9% | E17: =SUBTOTAL(109,Top5Expenses[15% REDUCTION]) -> 2,895.00

Sheet Income
B1: =COMPANY_NAME -> COMPANY NAME
B2: =BUDGET_Title -> MONTHLY BUDGET
B4: INCOME | C4: ESTIMATED | D4: ACTUAL | E4: TOP 5 AMOUNT | F4: DIFFERENCE
B5: Net sales | C5: 60,000.00 | D5: 54,000.00 | E5: =Income[[#This Row],[ACTUAL]]+(10^-6)*ROW(Income[[#This Row],[ACTUAL]]) -> 54,000.00 | F5: =Income[[#This Row],[ACTUAL]]-Income[[#This Row],[ESTIMATED]] -> -6,000.00
B6: Interest income | C6: 3,000.00 | D6: 3,000.00 | E6: =Income[[#This Row],[ACTUAL]]+(10^-6)*ROW(Income[[#This Row],[ACTUAL]]) -> 3,000.00 | F6: =Income[[#This Row],[ACTUAL]]-Income[[#This Row],[ESTIMATED]] -> 0.00
B7: Asset sales (gain/loss) | C7: 300.00 | D7: 450.00 | E7: =Income[[#This Row],[ACTUAL]]+(10^-6)*ROW(Income[[#This Row],[ACTUAL]]) -> 450.00 | F7: =Income[[#This Row],[ACTUAL]]-Income[[#This Row],[ESTIMATED]] -> 150.00
B8: Total Income | C8: =SUBTOTAL(109,Income[ESTIMATED]) -> 63,300.00 | D8: =SUBTOTAL(109,Income[ACTUAL]) -> 57,450.00 | F8: =SUBTOTAL(109,Income[DIFFERENCE]) -> -5,850.00

Sheet Personnel Expenses
B1: =COMPANY_NAME -> COMPANY NAME
B2: =BUDGET_Title -> MONTHLY BUDGET
B4: PERSONNEL EXPENSES | C4: ESTIMATED | D4: ACTUAL | E4: TOP 5 AMOUNT | F4: DIFFERENCE
B5: Wages | C5: 9,500.00 | D5: 9,600.00 | E5: =PersonnelExpenses[[#This Row],[ACTUAL]]+(10^-6)*ROW(PersonnelExpenses[[#This Row],[ACTUAL]]) -> 9,600.00 | F5: =PersonnelExpenses[[#This Row],[ESTIMATED]]-PersonnelExpenses[[#This Row],[ACTUAL]] -> -100.00
B6: Employee benefits | C6: 4,000.00 | D6: 0.00 | E6: =PersonnelExpenses[[#This Row],[ACTUAL]]+(10^-6)*ROW(PersonnelExpenses[[#This Row],[ACTUAL]]) -> 0.00 | F6: =PersonnelExpenses[[#This Row],[ESTIMATED]]-PersonnelExpenses[[#This Row],[ACTUAL]] -> 4,000.00
B7: Commission | C7: 5,000.00 | D7: 4,500.00 | E7: =PersonnelExpenses[[#This Row],[ACTUAL]]+(10^-6)*ROW(PersonnelExpenses[[#This Row],[ACTUAL]]) -> 4,500.00 | F7: =PersonnelExpenses[[#This Row],[ESTIMATED]]-PersonnelExpenses[[#This Row],[ACTUAL]] -> 500.00
B8: Total Personnel Expenses | C8: =SUBTOTAL(109,PersonnelExpenses[ESTIMATED]) -> 18,500.00 | D8: =SUBTOTAL(109,PersonnelExpenses[ACTUAL]) -> 14,100.00 | F8: =SUBTOTAL(109,PersonnelExpenses[DIFFERENCE]) -> 4,400.00

Sheet Operating Expenses
B1: =COMPANY_NAME -> COMPANY NAME
B2: =BUDGET_Title -> MONTHLY BUDGET
B4: OPERATING EXPENSES | C4: ESTIMATED | D4: ACTUAL | E4: TOP 5 AMOUNT | F4: DIFFERENCE
B5: Advertising | C5: 3,000.00 | D5: 2,500.00 | E5: =OperatingExpenses[[#This Row],[ACTUAL]]+(10^-6)*ROW(OperatingExpenses[[#This Row],[ACTUAL]]) -> 2,500.00 | F5: =OperatingExpenses[[#This Row],[ESTIMATED]]-OperatingExpenses[[#This Row],[ACTUAL]] -> 500.00
B6: Bad debts | C6: 2,000.00 | D6: 2,000.00 | E6: =OperatingExpenses[[#This Row],[ACTUAL]]+(10^-6)*ROW(OperatingExpenses[[#This Row],[ACTUAL]]) -> 2,000.00 | F6: =OperatingExpenses[[#This Row],[ESTIMATED]]-OperatingExpenses[[#This Row],[ACTUAL]] -> 0.00
B7: Cash discounts | C7: 1,500.00 | D7: 2,175.00 | E7: =OperatingExpenses[[#This Row],[ACTUAL]]+(10^-6)*ROW(OperatingExpenses[[#This Row],[ACTUAL]]) -> 2,175.00 | F7: =OperatingExpenses[[#This Row],[ESTIMATED]]-OperatingExpenses[[#This Row],[ACTUAL]] -> -675.00
B8: Delivery costs | C8: 2,000.00 | D8: 1,500.00 | E8: =OperatingExpenses[[#This Row],[ACTUAL]]+(10^-6)*ROW(OperatingExpenses[[#This Row],[ACTUAL]]) -> 1,500.00 | F8: =OperatingExpenses[[#This Row],[ESTIMATED]]-OperatingExpenses[[#This Row],[ACTUAL]] -> 500.00
B9: Depreciation | C9: 1,000.00 | D9: 1,000.00 | E9: =OperatingExpenses[[#This Row],[ACTUAL]]+(10^-6)*ROW(OperatingExpenses[[#This Row],[ACTUAL]]) -> 1,000.00 | F9: =OperatingExpenses[[#This Row],[ESTIMATED]]-OperatingExpenses[[#This Row],[ACTUAL]] -> 0.00
B10: Dues and subscriptions | C10: 500.00 | D10: 525.00 | E10: =OperatingExpenses[[#This Row],[ACTUAL]]+(10^-6)*ROW(OperatingExpenses[[#This Row],[ACTUAL]]) -> 525.00 | F10: =OperatingExpenses[[#This Row],[ESTIMATED]]-OperatingExpenses[[#This Row],[ACTUAL]] -> -25.00
B11: Insurance | C11: 1,300.00 | D11: 1,275.00 | E11: =OperatingExpenses[[#This Row],[ACTUAL]]+(10^-6)*ROW(OperatingExpenses[[#This Row],[ACTUAL]]) -> 1,275.00 | F11: =OperatingExpenses[[#This Row],[ESTIMATED]]-OperatingExpenses[[#This Row],[ACTUAL]] -> 25.00
B12: Interest | C12: 2,000.00 | D12: 2,200.00 | E12: =OperatingExpenses[[#This Row],[ACTUAL]]+(10^-6)*ROW(OperatingExpenses[[#This Row],[ACTUAL]]) -> 2,200.00 | F12: =OperatingExpenses[[#This Row],[ESTIMATED]]-OperatingExpenses[[#This Row],[ACTUAL]] -> -200.00
B13: Legal and auditing | C13: 1,000.00 | D13: 800.00 | E13: =OperatingExpenses[[#This Row],[ACTUAL]]+(10^-6)*ROW(OperatingExpenses[[#This Row],[ACTUAL]]) -> 800.00 | F13: =OperatingExpenses[[#This Row],[ESTIMATED]]-OperatingExpenses[[#This Row],[ACTUAL]] -> 200.00
B14: Maintenance and repairs | C14: 4,500.00 | D14: 4,600.00 | E14: =OperatingExpenses[[#This Row],[ACTUAL]]+(10^-6)*ROW(OperatingExpenses[[#This Row],[ACTUAL]]) -> 4,600.00 | F14: =OperatingExpenses[[#This Row],[ESTIMATED]]-OperatingExpenses[[#This Row],[ACTUAL]] -> -100.00
B15: Office supplies | C15: 800.00 | D15: 750.00 | E15: =OperatingExpenses[[#This Row],[ACTUAL]]+(10^-6)*ROW(OperatingExpenses[[#This Row],[ACTUAL]]) -> 750.00 | F15: =OperatingExpenses[[#This Row],[ESTIMATED]]-OperatingExpenses[[#This Row],[ACTUAL]] -> 50.00
B16: Postage | C16: 400.00 | D16: 350.00 | E16: =OperatingExpenses[[#This Row],[ACTUAL]]+(10^-6)*ROW(OperatingExpenses[[#This Row],[ACTUAL]]) -> 350.00 | F16: =OperatingExpenses[[#This Row],[ESTIMATED]]-OperatingExpenses[[#This Row],[ACTUAL]] -> 50.00
B17: Rent or mortgage | C17: 4,100.00 | D17: 4,500.00 | E17: =OperatingExpenses[[#This Row],[ACTUAL]]+(10^-6)*ROW(OperatingExpenses[[#This Row],[ACTUAL]]) -> 4,500.00 | F17: =OperatingExpenses[[#This Row],[ESTIMATED]]-OperatingExpenses[[#This Row],[ACTUAL]] -> -400.00
B18: Sales expenses | C18: 350.00 | D18: 400.00 | E18: =OperatingExpenses[[#This Row],[ACTUAL]]+(10^-6)*ROW(OperatingExpenses[[#This Row],[ACTUAL]]) -> 400.00 | F18: =OperatingExpenses[[#This Row],[ESTIMATED]]-OperatingExpenses[[#This Row],[ACTUAL]] -> -50.00
B19: Shipping and storage | C19: 900.00 | D19: 840.00 | E19: =OperatingExpenses[[#This Row],[ACTUAL]]+(10^-6)*ROW(OperatingExpenses[[#This Row],[ACTUAL]]) -> 840.00 | F19: =OperatingExpenses[[#This Row],[ESTIMATED]]-OperatingExpenses[[#This Row],[ACTUAL]] -> 60.00
B20: Supplies | C20: 5,000.00 | D20: 4,500.00 | E20: =OperatingExpenses[[#This Row],[ACTUAL]]+(10^-6)*ROW(OperatingExpenses[[#This Row],[ACTUAL]]) -> 4,500.00 | F20: =OperatingExpenses[[#This Row],[ESTIMATED]]-OperatingExpenses[[#This Row],[ACTUAL]] -> 500.00
B21: Taxes | C21: 3,000.00 | D21: 3,200.00 | E21: =OperatingExpenses[[#This Row],[ACTUAL]]+(10^-6)*ROW(OperatingExpenses[[#This Row],[ACTUAL]]) -> 3,200.00 | F21: =OperatingExpenses[[#This Row],[ESTIMATED]]-OperatingExpenses[[#This Row],[ACTUAL]] -> -200.00
B22: Telephone | C22: 250.00 | D22: 280.00 | E22: =OperatingExpenses[[#This Row],[ACTUAL]]+(10^-6)*ROW(OperatingExpenses[[#This Row],[ACTUAL]]) -> 280.00 | F22: =OperatingExpenses[[#This Row],[ESTIMATED]]-OperatingExpenses[[#This Row],[ACTUAL]] -> -30.00
B23: Utilities | C23: 1,400.00 | D23: 1,385.00 | E23: =OperatingExpenses[[#This Row],[ACTUAL]]+(10^-6)*ROW(OperatingExpenses[[#This Row],[ACTUAL]]) -> 1,385.00 | F23: =OperatingExpenses[[#This Row],[ESTIMATED]]-OperatingExpenses[[#This Row],[ACTUAL]] -> 15.00
B24: Other | C24: 1,000.00 | D24: 750.00 | E24: =OperatingExpenses[[#This Row],[ACTUAL]]+(10^-6)*ROW(OperatingExpenses[[#This Row],[ACTUAL]]) -> 750.00 | F24: =OperatingExpenses[[#This Row],[ESTIMATED]]-OperatingExpenses[[#This Row],[ACTUAL]] -> 250.00
B25: Total Operating Expenses | C25: =SUBTOTAL(109,OperatingExpenses[ESTIMATED]) -> 36,000.00 | D25: =SUBTOTAL(109,OperatingExpenses[ACTUAL]) -> 35,530.00 | F25: =SUBTOTAL(109,OperatingExpenses[DIFFERENCE]) -> 470.00
